fUST/lending_fUST_20250901
["ID","MTS","AMOUNT","RATE_DAILY","PERIOD"]
[382643094,1756691605189,-568.8,0.00016597,2]
[382643095,1756691605210,-480.0,0.00016597,2]
[382643096,1756691605232,-480.0,0.00016597,2]
[382643097,1756691605256,-480.0,0.00016597,2]
[382643098,1756691605278,-480.0,0.00016597,2]
[382643099,1756691605301,-480.0,0.00016597,2]
[382643100,1756691605323,-657.57,0.00016597,2]
[382643101,1756691605344,-480.0,0.00016597,2]
[382643102,1756691605365,-480.0,0.00016597,2]
[382643103,1756691605388,-480.0,0.00016597,2]
[382643104,1756691605410,-480.0,0.00016597,2]
[382643105,1756691605433,-769.19,0.00016597,2]
[382643106,1756691605456,-480.0,0.00016597,2]
[382643107,1756691605485,-480.0,0.00016597,2]
[382643108,1756691605510,-480.0,0.00016597,2]
[382643109,1756691605534,-518.41,0.00016597,2]
[382643110,1756691605558,-480.0,0.00016597,2]
[382643111,1756691605586,-480.0,0.00016597,2]
[382643112,1756691605610,-480.0,0.00016597,2]
[382643113,1756691605635,-480.0,0.00016597,2]
[382643114,1756691605661,-480.0,0.00016597,2]
[382643115,1756691605691,-480.0,0.00016597,2]
[382643116,1756691605717,-480.0,0.00016597,2]
[382643117,1756691605744,-893.06,0.00016597,2]
[382643118,1756691605770,-480.0,0.00016597,2]
[382643119,1756691605796,-480.0,0.00016597,2]
[382643120,1756691605822,-500.0,0.00016597,2]
[382643121,1756691605848,-480.0,0.00016597,2]
[382643122,1756691605873,-944.29,0.00016597,2]
[382643123,1756691605899,-480.0,0.00016597,2]
[382643124,1756691605924,-480.0,0.00016597,2]
[382643125,1756691605951,-543.02,0.00016597,2]
[382643126,1756691605978,-480.0,0.00016597,2]
[382643127,1756691606008,-652.58,0.00016597,2]
[382643128,1756691606034,-480.0,0.00016597,2]
[382643129,1756691606059,-499.74,0.00016597,2]
[382643130,1756691606087,-480.0,0.00016597,2]
[382643131,1756691606113,-901.4,0.00016597,2]
[382643132,1756691606140,-480.0,0.00016597,2]
[382643133,1756691606166,-480.0,0.00016597,2]
[382643134,1756691606192,-486.02,0.00016597,2]
[382643135,1756691606217,-480.0,0.00016597,2]
[382643136,1756691606241,-465.41569281,0.00016597,2]
[382643303,1756691860160,19000.0,0.00030821,60]
[382643304,1756691923510,381.68487336,0.00015936,2]
[382643305,1756692113571,333.97426419,0.00015936,2]
[382643306,1756692193474,1000.0,0.00015037,2]
[382643308,1756692257693,21583.8028154,0.00015037,2]
[382643309,1756692303925,292.22748114,0.00015935,2]
[382643310,1756692383648,151.0,0.00016,2]
[382643311,1756692419273,402.83718302,0.00015938,2]
[382643314,1756692488397,1927.0,0.0002739,120]
[382643316,1756692494369,255.69904598,0.00015935,2]
[382643325,1756692576229,935.044135,0.00013699,2]
[382643329,1756692593393,-480.0,0.00016034,2]
[382643330,1756692593424,-300.0,0.00016034,2]
[382643331,1756692593452,-480.0,0.00016034,2]
[382643332,1756692593480,-982.93,0.00016034,2]
[382643333,1756692593622,-3736.4934124,0.00016035,2]
[382643334,1756692593671,-717.43749992,0.00016035,2]
[382643335,1756692593696,-1809.58567528,0.00016035,2]
[382643336,1756692593706,-480.0,0.00016035,2]
[382643337,1756692593715,-480.0,0.00016035,2]
[382643338,1756692593725,-781.43,0.00016035,2]
[382643339,1756692593735,-480.0,0.00016035,2]
[382643340,1756692593745,-480.0,0.00016035,2]
[382643341,1756692593755,-480.0,0.00016035,2]
[382643342,1756692593765,-480.0,0.00016035,2]
[382643343,1756692593774,-480.0,0.00016035,2]
[382643344,1756692593784,-312.50091232,0.00016035,2]
[382643345,1756692593822,-167.49908768,0.00016035,2]
[382643346,1756692593851,-480.0,0.00016035,2]
[382643347,1756692593877,-480.0,0.00016035,2]
[382643348,1756692593906,-480.0,0.00016035,2]
[382643349,1756692593933,-990.93,0.00016035,2]
[382643350,1756692593958,-480.0,0.00016035,2]
[382643351,1756692593982,-480.0,0.00016035,2]
[382643352,1756692594008,-480.0,0.00016035,2]
[382643353,1756692594032,-480.0,0.00016035,2]
[382643354,1756692594059,-480.0,0.00016035,2]
[382643355,1756692594489,-480.0,0.00016035,2]
[382643356,1756692594517,-480.0,0.00016035,2]
[382643357,1756692594545,-745.29,0.00016035,2]
[382643358,1756692594573,-561.58,0.00016035,2]
[382643359,1756692594601,-404.65764314,0.00016035,2]
[382643360,1756692594629,-480.0,0.00016035,2]
[382643361,1756692594658,-480.0,0.00016035,2]
[382643362,1756692594686,-480.0,0.00016035,2]
[382643363,1756692594715,-511.58,0.00016035,2]
[382643364,1756692594933,-1064.73,0.00016035,2]
[382643365,1756692594962,-610.31,0.00016035,2]
[382643366,1756692594993,-678.07,0.00016035,2]
[382643367,1756692595021,-480.0,0.00016035,2]
[382643368,1756692595051,-480.0,0.00016035,2]
[382643369,1756692595080,-480.0,0.00016035,2]
[382643370,1756692595109,-480.0,0.00016035,2]
[382643371,1756692595137,-480.0,0.00016035,2]
[382643372,1756692595165,-13.79,0.00016035,2]
[382643373,1756692595268,-466.21,0.00016035,2]
[382643374,1756692595296,-480.0,0.00016035,2]
[382643375,1756692595324,-599.25,0.00016035,2]
[382643376,1756692595352,-480.0,0.00016035,2]
[382643377,1756692595379,-480.0,0.00016035,2]
[382643378,1756692595605,-480.0,0.00016035,2]
[382643379,1756692595635,-480.0,0.00016035,2]
[382643380,1756692595664,-517.95,0.00016035,2]
[382643381,1756692595693,-696.64,0.00016035,2]
[382643382,1756692595720,-222.43187667,0.00016035,2]
[382643383,1756692595795,-693.23,0.00016035,2]
[382643384,1756692595822,-480.0,0.00016035,2]
[382643385,1756692595850,-480.0,0.00016035,2]
[382643386,1756692595879,-1293.01,0.00016035,2]
[382643387,1756692595909,-581.21,0.00016035,2]
[382643388,1756692595937,-480.0,0.00016035,2]
[382643389,1756692595967,-972.38,0.00016035,2]
[382643390,1756692597184,-40.35,0.00016035,2]
[382643391,1756692597194,-1.24042816,0.00016035,2]
[382643392,1756692597216,-478.75957184,0.00016035,2]
[382643393,1756692597226,-1.24042816,0.00016035,2]
[382643394,1756692597241,-478.75957184,0.00016035,2]
[382643395,1756692597251,-533.97042816,0.00016035,2]
[382643396,1756692597382,-513.45957184,0.00016035,2]
[382643397,1756692597421,-787.71,0.00016035,2]
[382643398,1756692597460,-480.0,0.00016035,2]
[382643399,1756692597500,-480.0,0.00016035,2]
[382643400,1756692597536,-480.0,0.00016035,2]
[382643401,1756692597573,-480.0,0.00016035,2]
[382643402,1756692597610,-480.0,0.00016035,2]
[382643403,1756692597644,-849.1,0.00016035,2]
[382643404,1756692597682,-419.47085632,0.00016035,2]
[382643405,1756692597740,-60.52914368,0.00016035,2]
[382643406,1756692597772,-767.51,0.00016035,2]
[382643407,1756692597807,-579.33,0.00016035,2]
[382643408,1756692597846,-570.9,0.00016035,2]
[382643409,1756692597879,-480.0,0.00016035,2]
[382643410,1756692597916,-1000.36,0.00016035,2]
[382643411,1756692597953,-1131.33,0.00016035,2]
[382643412,1756692597987,-147.79171264,0.00016035,2]
[382643413,1756692598036,-524.50828736,0.00016035,2]
[382643414,1756692598070,-480.0,0.00016035,2]
[382643415,1756692598103,-480.0,0.00016035,2]
[382643416,1756692598136,-480.0,0.00016035,2]
[382643417,1756692598169,-480.0,0.00016035,2]
[382643418,1756692598201,-870.18,0.00016035,2]
[382643419,1756692598235,-480.0,0.00016035,2]
[382643420,1756692598268,-483.75266131,0.00016035,2]
[382643421,1756692598304,-538.88,0.00016035,2]
[382643422,1756692599185,-60.52914368,0.00016035,2]
[382643423,1756692599207,-446.09085632,0.00016035,2]
[382643424,1756692599218,-92.78914368,0.00016035,2]
[382643425,1756692599233,-365.36810266,0.00016035,2]
[382643426,1756692603467,-300.0,0.00016034,2]
[382643427,1756692603505,-480.0,0.00016034,2]
[382643428,1756692603548,-21.84275366,0.00016035,2]
[382643429,1756692603579,-716.35,0.00016035,2]
[382643430,1756692603608,-2299.19,0.00016035,2]
[382643431,1756692603638,-567.52,0.00016035,2]
[382643432,1756692603667,-480.0,0.00016035,2]
[382643433,1756692603775,-480.0,0.00016035,2]
[382643434,1756692603805,-591.02,0.00016035,2]
[382643435,1756692603833,-480.0,0.00016035,2]
[382643436,1756692603863,-739.88,0.00016035,2]
[382643437,1756692603892,-480.0,0.00016035,2]
[382643438,1756692603924,-480.0,0.00016035,2]
[382643439,1756692603954,-1116.17,0.00016035,2]
[382643440,1756692604114,-1265.87,0.00016035,2]
[382643441,1756692604143,-480.0,0.00016035,2]
[382643442,1756692604173,-480.0,0.00016035,2]
[382643443,1756692604202,-716.57,0.00016035,2]
[382643444,1756692604232,-480.0,0.00016035,2]
[382643445,1756692604260,-1378.16,0.00016035,2]
[382643446,1756692604723,-794.42,0.00016035,2]
[382643447,1756692604765,-2025.92,0.00016035,2]
[382643448,1756692604802,-480.0,0.00016035,2]
[382643449,1756692604834,-482.26819765,0.00016035,2]
[382643450,1756692604874,-480.0,0.00016035,2]
[382643451,1756692604904,-480.0,0.00016035,2]
[382643452,1756692604940,-34.7936047,0.00016035,2]
[382643453,1756692605399,-445.2063953,0.00016035,2]
[382643454,1756692605428,-480.0,0.00016035,2]
[382643455,1756692605457,-480.0,0.00016035,2]
[382643456,1756692605486,-480.0,0.00016035,2]
[382643457,1756692605515,-480.0,0.00016035,2]
[382643458,1756692605543,-482.3856939,0.00016035,2]
[382643459,1756692605574,-480.0,0.00016035,2]
[382643460,1756692605604,-480.0,0.00016035,2]
[382643461,1756692605635,-480.0,0.00016035,2]
[382643462,1756692605666,-480.0,0.00016035,2]
[382643463,1756692605751,-880.13,0.00016035,2]
[382643464,1756692605781,-480.0,0.00016035,2]
[382643465,1756692605810,-805.44,0.00016035,2]
[382643466,1756692605839,-482.34310288,0.00016035,2]
[382643467,1756692605870,-528.9,0.00016035,2]
[382643468,1756692605899,-1031.03,0.00016035,2]
[382643469,1756692605934,-480.0,0.00016035,2]
[382643470,1756692605967,-144.32379424,0.00016035,2]
[382643471,1756692606168,-335.67620576,0.00016035,2]
[382643472,1756692606199,-480.0,0.00016035,2]
[382643473,1756692606230,-480.0,0.00016035,2]
[382643474,1756692606259,-484.48363425,0.00016035,2]
[382643475,1756692606288,-480.0,0.00016035,2]
[382643476,1756692606318,-480.0,0.00016035,2]
[382643477,1756692606348,-480.0,0.00016035,2]
[382643478,1756692606377,-480.0,0.00016035,2]
[382643479,1756692606406,-711.49,0.00016035,2]
[382643480,1756692606434,-480.0,0.00016035,2]
[382643481,1756692606580,-480.0,0.00016035,2]
[382643482,1756692606609,-480.0,0.00016035,2]
[382643483,1756692608108,-174.79743557,0.00016035,2]
[382643484,1756692608147,-305.20256443,0.00016035,2]
[382643485,1756692608164,-174.79743557,0.00016035,2]
[382643486,1756692608333,-480.0,0.00016035,2]
[382643487,1756692608379,-711.49,0.00016035,2]
[382643488,1756692608393,-480.0,0.00016035,2]
[382643489,1756692608435,-216.71031998,0.00016035,2]
[382643490,1756692608555,-480.0,0.00016035,2]
[382643491,1756692608589,-480.0,0.00016035,2]
[382643492,1756692608604,-8080.01,0.00016035,2]
[382643493,1756692608618,-10000.01,0.00016035,2]
[382643494,1756692608635,-4942.60247916,0.00016035,2]
[382643495,1756692608644,-552.38,0.00016036,2]
[382643496,1756692608653,-3183.96,0.00016036,2]
[382643497,1756692608662,-1211.96,0.00016036,2]
[382643498,1756692608671,-109.10752084,0.00016036,2]
[382643499,1756692619337,340.91363852,0.0001601,2]
[382643500,1756692622382,250.0,0.00015866,2]
[382643732,1756692638730,-462.38,0.00016031,3]
[382643733,1756692638740,-762.5,0.00016031,3]
[382643734,1756692638750,-480.0,0.00016034,2]
[382643735,1756692638760,-509.26,0.00016034,2]
[382643736,1756692638769,-186.46136602,0.00016034,2]
[382643737,1756692638780,-500.0,0.00016034,2]
[382643739,1756692638789,-584.26691197,0.00016034,2]
[382643741,1756692638799,-500.0,0.00016034,2]
[382643743,1756692638809,-395.50459526,0.00016034,2]
[382643745,1756692638818,-500.0,0.00016034,2]
[382643747,1756692638829,-500.0,0.00016034,2]
[382643749,1756692638838,-30.00134383,0.00016034,2]
[382643756,1756692638901,-469.99865617,0.00016034,2]
[382643758,1756692638911,-500.0,0.00016034,2]
[382643761,1756692638924,-500.0,0.00016034,2]
[382643763,1756692638934,-500.0,0.00016034,2]
[382643765,1756692638945,-500.0,0.00016034,2]
[382643767,1756692638954,-500.0,0.00016034,2]
[382643769,1756692638965,-500.0,0.00016034,2]
[382643771,1756692638975,-500.0,0.00016034,2]
[382643773,1756692638985,-191.2113699,0.00016034,2]
[382643775,1756692638995,-500.0,0.00016034,2]
[382643777,1756692639007,-500.0,0.00016034,2]
[382643779,1756692639017,-500.0,0.00016034,2]
[382643781,1756692639026,-500.0,0.00016034,2]
[382643783,1756692639036,-480.0,0.00016035,2]
[382643785,1756692639047,-480.0,0.00016035,2]
[382643787,1756692639057,-480.0,0.00016035,2]
[382643789,1756692639067,-480.0,0.00016035,2]
[382643791,1756692639077,-480.0,0.00016035,2]
[382643793,1756692639086,-1005.3,0.00016035,2]
[382643795,1756692639095,-609.27,0.00016035,2]
[382643797,1756692639105,-481.68766409,0.00016035,2]
[382643799,1756692639116,-480.0,0.00016035,2]
[382643801,1756692639126,-480.0,0.00016035,2]
[382643803,1756692639136,-615.16,0.00016035,2]
[382643805,1756692639146,-919.55,0.00016035,2]
[382643807,1756692639156,-1203.79,0.00016035,2]
[382643809,1756692639166,-1368.80247916,0.00016036,2]
[382643811,1756692639175,-480.0,0.00016036,2]
[382643813,1756692639185,-480.0,0.00016036,2]
[382643815,1756692639194,-1853.34,0.00016036,2]
[382643817,1756692639204,-962.5,0.00016036,2]
[382643819,1756692639216,-618.13,0.00016036,2]
[382643821,1756692639226,-1180.26,0.00016036,2]
[382643823,1756692639236,-586.73,0.00016036,2]
[382643825,1756692639245,-500.0,0.00016037,2]
[382643827,1756692639255,-480.0,0.00016037,2]
[382643829,1756692639265,-823.81,0.00016037,2]
[382643831,1756692639274,-505.55,0.00016037,2]
[382643833,1756692639284,-480.0,0.00016037,2]
[382643835,1756692639295,-480.0,0.00016037,2]
[382643837,1756692639304,-480.0,0.00016037,2]
[382643839,1756692639314,-804.41,0.00016037,2]
[382643841,1756692639324,-514.74,0.00016037,2]
[382643843,1756692639338,-480.0,0.00016037,2]
[382643845,1756692639350,-480.0,0.00016037,2]
[382643847,1756692639360,-480.0,0.00016037,2]
[382643849,1756692639371,-480.0,0.00016037,2]
[382643851,1756692639382,-480.0,0.00016037,2]
[382643853,1756692639393,-1066.83,0.00016037,2]
[382643855,1756692639403,-479.83997074,0.00016037,2]
[382643857,1756692639412,-1056.87,0.00016037,2]
[382643859,1756692639421,-480.0,0.00016037,2]
[382643861,1756692639431,-480.0,0.00016037,2]
[382643863,1756692639440,-480.0,0.00016037,2]
[382643865,1756692639450,-480.0,0.00016037,2]
[382643867,1756692639460,-942.58,0.00016037,2]
[382643869,1756692639469,-480.0,0.00016037,2]
[382643871,1756692639479,-1024.49,0.00016037,2]
[382643873,1756692639489,-480.0,0.00016037,2]
[382643875,1756692639499,-480.0,0.00016037,2]
[382643877,1756692639509,-944.92,0.00016037,2]
[382643879,1756692639520,-480.0,0.00016037,2]
[382643881,1756692639529,-480.0,0.00016037,2]
[382643884,1756692639539,-491.06,0.00016037,2]
[382643886,1756692639549,-480.0,0.00016037,2]
[382643887,1756692639558,-501.2,0.00016037,2]
[382643889,1756692639567,-933.74,0.00016037,2]
[382643892,1756692639578,-945.42,0.00016037,2]
[382643894,1756692639587,-480.0,0.00016037,2]
[382643896,1756692639597,-979.9,0.00016037,2]
[382643898,1756692639607,-480.0,0.00016037,2]
[382643900,1756692639616,-480.0,0.00016037,2]
[382643901,1756692639626,-1150.39,0.00016037,2]
[382643904,1756692639636,-902.27,0.00016037,2]
[382643906,1756692639646,-804.22,0.00016037,2]
[382643908,1756692639656,-1212.68,0.00016037,2]
[382643910,1756692639666,-480.0,0.00016037,2]
[382643912,1756692639684,-480.0,0.00016037,2]
[382643915,1756692639695,-480.0,0.00016037,2]
[382643917,1756692639704,-1815.61,0.00016037,2]
[382643919,1756692639714,-1076.63,0.00016037,2]
[382643921,1756692639724,-612.97,0.00016037,2]
[382643923,1756692639734,-480.0,0.00016037,2]
[382643925,1756692639744,-1268.48,0.00016037,2]
[382643927,1756692639755,-690.34,0.00016037,2]
[382643929,1756692639765,-481.9496529,0.00016037,2]
[382643931,1756692639776,-518.8,0.00016037,2]
[382643933,1756692639786,-500.0,0.00016037,2]
[382643936,1756692639795,-500.0,0.00016037,2]
[382643939,1756692639805,-500.0,0.00016037,2]
[382643941,1756692639815,-500.0,0.00016037,2]
[382643943,1756692639824,-480.0,0.00016037,2]
[382643945,1756692639834,-480.0,0.00016037,2]
[382643947,1756692639844,-480.0,0.00016038,2]
[382643949,1756692639853,-679.89,0.00016038,2]
[382643951,1756692639863,-480.0,0.00016038,2]
[382643953,1756692639874,-480.0,0.00016038,2]
[382643957,1756692639886,-480.0,0.00016038,2]
[382643960,1756692639896,-480.0,0.00016038,2]
[382643963,1756692639905,-480.0,0.00016038,2]
[382643965,1756692639917,-480.0,0.00016038,2]
[382643967,1756692639928,-480.0,0.00016038,2]
[382643969,1756692639938,-480.0,0.00016038,2]
[382643971,1756692639948,-480.0,0.00016038,2]
[382643973,1756692639959,-480.0,0.00016038,2]
[382643974,1756692639968,-443.41618581,0.00016038,2]
[382643977,1756692639979,-480.0,0.00016038,2]
[382643981,1756692639989,-709.23,0.00016038,2]
[382643983,1756692640208,-735.72,0.00016038,2]
[382643985,1756692640220,-480.70557139,0.00016038,2]
[382643987,1756692640230,-480.0,0.00016038,2]
[382643989,1756692640242,-480.0,0.00016038,2]
[382643991,1756692640252,-480.0,0.00016038,2]
[382643993,1756692640262,-1016.26,0.00016038,2]
[382643995,1756692640271,-480.0,0.00016038,2]
[382643997,1756692640282,-480.0,0.00016038,2]
[382643999,1756692640293,-507.38,0.00016038,2]
[382644001,1756692640302,-480.0,0.00016038,2]
[382644003,1756692640312,-480.0,0.00016038,2]
[382644005,1756692640321,-480.0,0.00016038,2]
[382644007,1756692640331,-480.0,0.00016038,2]
[382644009,1756692640341,-480.0,0.00016038,2]
[382644011,1756692640352,-480.0,0.00016038,2]
[382644014,1756692640362,-480.0,0.00016038,2]
[382644016,1756692640372,-480.0,0.00016038,2]
[382644018,1756692640383,-1039.37,0.00016038,2]
[382644020,1756692640393,-480.0,0.00016038,2]
[382644022,1756692640404,-480.0,0.00016038,2]
[382644024,1756692640414,-480.0,0.00016038,2]
[382644026,1756692640424,-984.8,0.00016038,2]
[382644028,1756692640434,-240.98376815,0.00016038,2]
[382644030,1756692640444,-480.0,0.00016038,2]
[382644032,1756692640453,-480.0,0.00016038,2]
[382644034,1756692640465,-480.0,0.00016038,2]
[382644036,1756692640475,-480.0,0.00016038,2]
[382644038,1756692640484,-480.0,0.00016038,2]
[382644040,1756692640495,-642.31,0.00016038,2]
[382644042,1756692640505,-480.0,0.00016038,2]
[382644044,1756692640515,-506.01,0.00016038,2]
[382644066,1756692640708,-480.0,0.00016038,2]
[382644068,1756692640719,-480.0,0.00016038,2]
[382644070,1756692640729,-480.0,0.00016038,2]
[382644072,1756692640739,-512.92,0.00016038,2]
[382644074,1756692640748,-480.0,0.00016038,2]
[382644076,1756692640758,-606.66,0.00016038,2]
[382644078,1756692640767,-481.6478662,0.00016038,2]
[382644080,1756692640776,-480.0,0.00016038,2]
[382644082,1756692640785,-555.65857154,0.00016038,2]
[382644084,1756692640795,-480.0,0.00016038,2]
[382644086,1756692640804,-480.0,0.00016038,2]
[382644088,1756692640814,-480.0,0.00016038,2]
[382644090,1756692640823,-480.0,0.00016038,2]
[382644092,1756692640832,-480.0,0.00016038,2]
[382644094,1756692640841,-1049.89,0.00016038,2]
[382644096,1756692640851,-480.0,0.00016038,2]
[382644097,1756692640860,-480.0,0.00016038,2]
[382644099,1756692640870,-480.0,0.00016038,2]
[382644101,1756692640881,-480.0,0.00016038,2]
[382644103,1756692640890,-480.0,0.00016038,2]
[382644105,1756692640900,-480.0,0.00016038,2]
[382644107,1756692640909,-480.0,0.00016038,2]
[382644110,1756692640920,-480.0,0.00016038,2]
[382644112,1756692640932,-480.0,0.00016038,2]
[382644113,1756692640941,-480.0,0.00016038,2]
[382644116,1756692640951,-480.0,0.00016038,2]
[382644118,1756692640960,-480.0,0.00016038,2]
[382644120,1756692640972,-358.63503718,0.00016038,2]
[382644122,1756692640981,-480.0,0.00016038,2]
[382644124,1756692640990,-480.0,0.00016038,2]
[382644126,1756692641000,-480.0,0.00016038,2]
[382644127,1756692641011,-501.97,0.00016038,2]
[382644129,1756692641019,-480.0,0.00016038,2]
[382644131,1756692641028,-982.0,0.00016038,2]
[382644133,1756692641038,-942.76,0.00016038,2]
[382644135,1756692641047,-480.0,0.00016038,2]
[382644137,1756692641056,-480.0,0.00016038,2]
[382644139,1756692641066,-480.0,0.00016038,2]
[382644141,1756692641075,-480.0,0.00016038,2]
[382644143,1756692641084,-1009.57,0.00016038,2]
[382644145,1756692641094,-480.0,0.00016038,2]
[382644147,1756692641103,-548.15,0.00016038,2]
[382644149,1756692641112,-381.87211716,0.00016038,2]
[382644151,1756692641121,-480.0,0.00016038,2]
[382644153,1756692641131,-480.0,0.00016038,2]
[382644155,1756692641141,-480.0,0.00016038,2]
[382644157,1756692641150,-480.0,0.00016038,2]
[382644159,1756692641159,-480.0,0.00016038,2]
[382644161,1756692641168,-480.0,0.00016038,2]
[382644163,1756692641179,-481.34972911,0.00016038,2]
[382644165,1756692641188,-480.0,0.00016038,2]
[382644167,1756692641199,-480.0,0.00016038,2]
[382644169,1756692641208,-480.0,0.00016038,2]
[382644171,1756692641217,-617.3,0.00016038,2]
[382644173,1756692641227,-541.4,0.00016038,2]
[382644175,1756692641236,-480.0,0.00016038,2]
[382644177,1756692641246,-480.0,0.00016038,2]
[382644179,1756692641255,-480.0,0.00016038,2]
[382644181,1756692641264,-480.0,0.00016038,2]
[382644183,1756692641274,-480.0,0.00016038,2]
[382644185,1756692641283,-619.57068782,0.00016038,2]
[382644187,1756692641291,-480.0,0.00016038,2]
[382644189,1756692641301,-500.0,0.00016038,2]
[382644191,1756692641310,-480.0,0.00016038,2]
[382644193,1756692641319,-480.0,0.00016038,2]
[382644194,1756692641328,-480.0,0.00016038,2]
[382644196,1756692641337,-480.0,0.00016038,2]
[382644198,1756692641347,-480.0,0.00016038,2]
[382644200,1756692641356,-480.0,0.00016038,2]
[382644202,1756692641365,-480.0,0.00016038,2]
[382644204,1756692641374,-480.0,0.00016038,2]
[382644206,1756692641388,-480.0,0.00016038,2]
[382644208,1756692641397,-480.0,0.00016038,2]
[382644210,1756692641408,-480.0,0.00016038,2]
[382644212,1756692641417,-543.51,0.00016038,2]
[382644214,1756692641426,-480.0,0.00016038,2]
[382644217,1756692641436,-480.0,0.00016038,2]
[382644218,1756692641445,-480.0,0.00016038,2]
[382644220,1756692641455,-480.0,0.00016038,2]
[382644222,1756692641464,-809.86,0.00016039,2]
[382644224,1756692641474,-480.0,0.00016039,2]
[382644226,1756692641484,-480.0,0.00016039,2]
[382644228,1756692641494,-188.32626617,0.00016039,2]
[382644230,1756692641503,-480.0,0.00016039,2]
[382644232,1756692641512,-480.0,0.00016039,2]
[382644235,1756692641522,-3859.91,0.0001604,2]
[382644237,1756692641532,-657.21,0.0001604,2]
[382644239,1756692641541,-1450.19,0.0001604,2]
[382644241,1756692641550,-480.0,0.0001604,2]
[382644243,1756692641560,-821.61,0.0001604,2]
[382644245,1756692641569,-5365.63,0.0001604,2]
[382644247,1756692641579,-1282.19,0.0001604,2]
[382644249,1756692641588,-5001.93,0.0001604,2]
[382644251,1756692641598,-1135.74,0.0001604,2]
[382644253,1756692641608,-5378.7,0.0001604,2]
[382644255,1756692641617,-500.0,0.0001604,2]
[382644257,1756692641628,-480.0,0.0001604,2]
[382644259,1756692641637,-3345.41,0.0001604,2]
[382644261,1756692641647,-972.38,0.00016041,2]
[382644262,1756692641657,-776.14,0.00016041,2]
[382644265,1756692641666,-583.77,0.00016041,2]
[382644266,1756692641676,-480.0,0.00016041,2]
[382644269,1756692641685,-480.0,0.00016041,2]
[382644270,1756692641695,-480.0,0.00016041,2]
[382644272,1756692641704,-999.25,0.00016041,2]
[382644274,1756692641713,-480.0,0.00016041,2]
[382644276,1756692641722,-461.84390019,0.00016041,2]
[382644278,1756692641731,-595.96283006,0.00016041,2]
[382644280,1756692641740,-480.0,0.00016041,2]
[382644282,1756692641750,-860.73,0.00016041,2]
[382644284,1756692641760,-480.0,0.00016041,2]
[382644286,1756692641769,-480.0,0.00016041,2]
[382644288,1756692641779,-622.46,0.00016041,2]
[382644290,1756692641788,-480.0,0.00016041,2]
[382644292,1756692641797,-480.0,0.00016041,2]
[382644294,1756692641807,-577.35,0.00016041,2]
[382644296,1756692641816,-480.0,0.00016041,2]
[382644298,1756692641825,-480.0,0.00016041,2]
[382644300,1756692641835,-480.0,0.00016041,2]
[382644302,1756692641844,-872.25,0.00016041,2]
[382644304,1756692641854,-480.0,0.00016041,2]
[382644306,1756692641863,-588.27,0.00016041,2]
[382644308,1756692641872,-480.0,0.00016041,2]